[Event "44th Chess Olympiad Open 2022"]
[Site "Chennai"]
[Date "2022.08.09"]
[Round "11.15"]
[White "Cruz, Cristhian"]
[Black "Moroni, Luca Jr"]
[Result "1-0"]
[ECO "D35"]
[WhiteElo "2579"]
[BlackElo "2584"]
[Annotator "RC"]
[PlyCount "109"]
[EventDate "2022.07.29"]
[EventType "team-tourn"]
[EventCountry "IND"]
[SourceTitle "playchess.com"]
[Source "ChessBase"]
[SourceQuality "1"]
[WhiteTeam "Peru"]
[BlackTeam "Italy"]
[WhiteTeamCountry "PER"]
[BlackTeamCountry "ITA"]
[TimeControl "40/5400+30:1800+30"]

1. d4 {[%emt 0:03:44]} Nf6 {[%emt 0:00:05]} 2. c4 {[%emt 0:00:11]} e6 {[%emt 0:00:03]} 3. Nc3 {[%emt 0:00:16]} d5 {[%emt 0:00:03]} 4. cxd5 {[%emt 0:01:12]} exd5 {[%emt 0:00:04]} 5. Bg5 {[%emt 0:00:13]} c6 {[%emt 0:00:03]} 6. e3 {[%emt 0:00:26]} Be6 {[%emt 0:00:04]} 7. Bd3 {[%emt 0:01:35]} Nbd7 {[%emt 0:00:05]} 8. Nge2 {[%emt 0:02:30]} h6 {[%emt 0:00:04]} 9. Bh4 {[%emt 0:00:20]} g5 {[%emt 0:00:03]} 10. Bg3 {[%emt 0:00:19]} Nh5 {[%emt 0:00:03]} 11. Qc2 {[%emt 0:01:31]} Nxg3 {[%emt 0:00:04]} 12. Nxg3 {[%emt 0:01:36]} h5 {[%emt 0:00:04]} 13. h3 {[%emt 0:13:15]} Nb6 {[%emt 0:07:37]} 14. O-O-O {[%emt 0:00:00]} Qf6 {[%emt 0:08:31]} 15. Kb1 {[%emt 0:11:54]} O-O-O {[%emt 0:04:28]} 16. f3 {[%emt 0:16:44]} Kb8 {[%emt 0:04:09]} 17. Nge2 {[%emt 0:01:53]} c5 {[%emt 0:10:22]} 18. Qd2 {[%emt 0:06:31]} a6 {[%emt 0:13:58]} 19. Rc1 {[%emt 0:04:43]} Rc8 {[%emt 0:00:45]} 20. e4 {[%emt 0:10:32]} cxd4 {[%emt 0:07:32]} 21. Nxd5 {[%emt 0:00:13]} Rxc1+ {[%emt 0:00:50]} 22. Rxc1 {[%emt 0:00:05]} Nxd5 {[%emt 0:00:14]} 23. exd5 {[%emt 0:00:29]} Bxd5 {[%emt 0:01:47]} 24. Qa5 {[%emt 0:00:19]} Qd6 {[%emt 0:11:52]} 25. Nxd4 {[%emt 0:04:21]} Be7 {[%emt 0:09:05]} 26. Nf5 {[%emt 0:08:36]} Qd8 {[%emt 0:00:32]} 27. Qxd8+ {[%emt 0:00:56]} Bxd8 {[%emt 0:00:02]} 28. Bc4 {[%emt 0:00:08]} Bc6 {[%emt 0:05:04]} 29. Bxa6 {[%emt 0:02:57]} Bxf3 {[%emt 0:03:20]} 30. gxf3 {[%emt 0:00:18]} bxa6 {[%emt 0:00:03]} 31. Nd6 {[%emt 0:02:20]} Bc7 {[%emt 0:02:13]} 32. Nxf7 {[%emt 0:00:47]} Rg8 {[%emt 0:00:02]} 33. Rc5 {[%emt 0:01:31]} g4 {[%emt 0:01:20]} 34. hxg4 {[%emt 0:01:16]} h4 {[%emt 0:00:23]} 35. Rh5 {[%emt 0:00:37]} Bg3 {[%emt 0:02:23]} 36. Nh6 {[%emt 0:04:56]} Re8 {[%emt 0:04:12]} 37. Nf5 {[%emt 0:00:00]} Re1+ {[%emt 0:00:24]} 38. Kc2 {[%emt 0:00:00]} Re2+ {[%emt 0:00:06]} 39. Kd3 {[%emt 0:00:00]} Rxb2 {[%emt 0:00:30]} 40. Nxg3 {[%emt 0:00:35]} hxg3 {[%emt 0:00:01]} 41. Rh3 {[%emt 0:30:39]} Kc7 {[%emt 0:36:19]} 42. Rxg3 {[%emt 0:00:00]} Kd7 {[%emt 0:00:00]} 43. Ke4 {[%emt 0:00:00]} Ke6 {[%emt 0:00:00]} 44. Rh3 {[%emt 0:00:00]} Rxa2 {[%emt 0:00:00]} 45. Rh6+ {[%emt 0:00:00]} Kf7 {[%emt 0:00:00]} 46. g5 {[%emt 0:00:00]} Ra4+ {[%emt 0:00:00]} 47. Kf5 {[%emt 0:00:00]} Ra5+ {[%emt 0:00:00]} 48. Kg4 {[%emt 0:00:00]} Ra4+ {[%emt 0:00:00]} 49. f4 {[%emt 0:00:00]} Ra1 {[%emt 0:00:00]} 50. Rf6+ {[%emt 0:00:00]} Kg7 {[%emt 0:00:00]} 51. Re6 {[%emt 0:00:00]} Kf7 {[%emt 0:00:00]} 52. Kf5 {[%emt 0:00:00]} Ra5+ {[%emt 0:00:00]} 53. Re5 {[%emt 0:00:00]} Ra4 {[%emt 0:00:00]} 54. g6+ {[%emt 0:00:00]} Kf8 {[%emt 0:00:00]} 55. Kg5 {[%emt 0:00:00]} 1-0

[Event "44th Chess Olympiad Open 2022"]
[Site "Chennai"]
[Date "2022.08.09"]
[Round "11.15"]
[White "Lodici, Lorenzo"]
[Black "Escalante Ramirez, Brian Sebasti"]
[Result "0-1"]
[ECO "D35"]
[WhiteElo "2553"]
[BlackElo "2496"]
[Annotator "RC"]
[PlyCount "125"]
[EventDate "2022.07.29"]
[EventType "team-tourn"]
[EventCountry "IND"]
[SourceTitle "playchess.com"]
[Source "ChessBase"]
[SourceQuality "1"]
[WhiteTeam "Italy"]
[BlackTeam "Peru"]
[WhiteTeamCountry "ITA"]
[BlackTeamCountry "PER"]
[TimeControl "40/5400+30:1800+30"]

1. d4 {[%emt 0:00:02]} e6 {[%emt 0:02:41]} 2. c4 {[%emt 0:00:10]} Nf6 {[%emt 0:00:06]} 3. Nc3 {[%emt 0:00:05]} d5 {[%emt 0:00:05]} 4. cxd5 {[%emt 0:00:34]} exd5 {[%emt 0:00:05]} 5. Bg5 {[%emt 0:00:05]} c6 {[%emt 0:00:02]} 6. e3 {[%emt 0:00:07]} Bd6 {[%emt 0:00:04]} 7. Bd3 {[%emt 0:00:23]} O-O {[%emt 0:00:03]} 8. Nge2 {[%emt 0:02:40]} Re8 {[%emt 0:00:05]} 9. Qd2 {[%emt 0:01:22]} Nbd7 {[%emt 0:15:38]} 10. Ng3 {[%emt 0:09:48]} Nf8 {[%emt 0:14:45]} 11. Nf5 {[%emt 0:03:38]} Bc7 {[%emt 0:17:52]} 12. g4 {[%emt 0:12:03]} Ng6 {[%emt 0:05:01]} 13. Qc2 {[%emt 0:17:15]} h6 {[%emt 0:14:32]} 14. Bxf6 {[%emt 0:01:53]} Qxf6 {[%emt 0:00:04]} 15. O-O-O {[%emt 0:05:24]} Nh4 {[%emt 0:06:47]} 16. Kb1 {[%emt 0:04:10]} Be6 {[%emt 0:01:44]} 17. Ne2 {[%emt 0:08:15]} g6 {[%emt 0:09:28]} 18. Nxh6+ {[%emt 0:09:12]} Kg7 {[%emt 0:00:05]} 19. f4 {[%emt 0:01:11]} Bd7 {[%emt 0:01:16]} 20. g5 {[%emt 0:02:02]} Qd6 {[%emt 0:04:51]} 21. e4 {[%emt 0:02:01]} dxe4 {[%emt 0:00:26]} 22. Bxe4 {[%emt 0:00:05]} f5 {[%emt 0:02:06]} 23. Bd3 {[%emt 0:02:21]} Re3 {[%emt 0:01:09]} 24. Bc4 {[%emt 0:09:41]} Qe7 {[%emt 0:01:29]} 25. Rhf1 {[%emt 0:03:03]} Re8 {[%emt 0:01:28]} 26. Nc3 {[%emt 0:01:24]} Nf3 {[%emt 0:00:40]} 27. d5 {[%emt 0:00:57]} Bxf4 {[%emt 0:00:21]} 28. dxc6 {[%emt 0:00:08]} bxc6 {[%emt 0:00:29]} 29. h4 {[%emt 0:00:29]} Be5 {[%emt 0:00:20]} 30. Nf7 {[%emt 0:02:20]} Bxc3 {[%emt 0:00:44]} 31. bxc3 {[%emt 0:00:03]} Rb8+ {[%emt 0:00:10]} 32. Ka1 {[%emt 0:00:13]} Be6 {[%emt 0:00:12]} 33. Nd6 {[%emt 0:00:22]} Bxc4 {[%emt 0:01:38]} 34. Nxc4 {[%emt 0:00:02]} Re2 {[%emt 0:00:29]} 35. Qc1 {[%emt 0:03:48]} Ne5 {[%emt 0:00:33]} 36. Nxe5 {[%emt 0:00:42]} Qxe5 {[%emt 0:00:01]} 37. Rfe1 {[%emt 0:00:15]} Rxe1 {[%emt 0:01:00]} 38. Rxe1 {[%emt 0:00:01]} Qc5 {[%emt 0:00:29]} 39. Qd2 {[%emt 0:00:45]} Rd8 {[%emt 0:00:29]} 40. Qb2 {[%emt 0:00:34]} Rd7 {[%emt 0:00:32]} 41. c4+ {[%emt 0:11:13]} Kh7 {[%emt 0:05:08]} 42. Qf6 {[%emt 0:03:35]} Qb4 {[%emt 0:14:51]} 43. Qe5 {[%emt 0:06:55]} Qxc4 {[%emt 0:02:49]} 44. h5 {[%emt 0:00:06]} Qf7 {[%emt 0:03:49]} 45. h6 {[%emt 0:00:41]} f4 {[%emt 0:01:32]} 46. Rf1 {[%emt 0:01:39]} Rd2 {[%emt 0:03:26]} 47. Qa5 {[%emt 0:01:22]} Qd7 {[%emt 0:01:45]} 48. Rxf4 {[%emt 0:00:40]} Re2 {[%emt 0:00:30]} 49. Qb4 {[%emt 0:01:27]} c5 {[%emt 0:00:35]} 50. Qb1 {[%emt 0:01:54]} Qe7 {[%emt 0:00:15]} 51. Qb5 {[%emt 0:01:31]} Qe5+ {[%emt 0:00:47]} 52. Kb1 {[%emt 0:00:02]} Re1+ {[%emt 0:00:17]} 53. Kc2 {[%emt 0:00:01]} Qxg5 {[%emt 0:00:36]} 54. Qb7+ {[%emt 0:02:41]} Kxh6 {[%emt 0:00:24]} 55. Qf3 {[%emt 0:00:03]} Qe5 {[%emt 0:00:28]} 56. Kd2 {[%emt 0:00:36]} Re2+ {[%emt 0:00:23]} 57. Kd3 {[%emt 0:00:53]} Rh2 {[%emt 0:00:42]} 58. Re4 {[%emt 0:01:20]} Qd5+ {[%emt 0:00:21]} 59. Kc3 {[%emt 0:00:02]} Qd2+ {[%emt 0:00:15]} 60. Kc4 {[%emt 0:00:00]} Qxa2+ {[%emt 0:00:38]} 61. Kxc5 {[%emt 0:00:44]} Qf2+ {[%emt 0:00:39]} 62. Qxf2 {[%emt 0:00:10]} Rxf2 {[%emt 0:00:02]} 63. Kd4 {[%emt 0:00:47]} 0-1

[Event "44th Chess Olympiad Open 2022"]
[Site "Chennai"]
[Date "2022.08.09"]
[Round "11.15"]
[White "Terry, Renato"]
[Black "Brunello, Sabino"]
[Result "1/2-1/2"]
[ECO "A30"]
[WhiteElo "2502"]
[BlackElo "2520"]
[Annotator "RC"]
[PlyCount "80"]
[EventDate "2022.07.29"]
[EventType "team-tourn"]
[EventCountry "IND"]
[SourceTitle "playchess.com"]
[Source "ChessBase"]
[SourceQuality "1"]
[WhiteTeam "Peru"]
[BlackTeam "Italy"]
[WhiteTeamCountry "PER"]
[BlackTeamCountry "ITA"]
[TimeControl "40/5400+30:1800+30"]

1. Nf3 {[%emt 0:03:32]} Nf6 {[%emt 0:01:17]} 2. c4 {[%emt 0:00:46]} e6 {[%emt 0:00:18]} 3. b3 {[%emt 0:02:09]} b6 {[%emt 0:05:57]} 4. g3 {[%emt 0:00:50]} Bb7 {[%emt 0:00:07]} 5. Bg2 {[%emt 0:00:03]} c5 {[%emt 0:01:07]} 6. O-O {[%emt 0:00:53]} Be7 {[%emt 0:00:33]} 7. Bb2 {[%emt 0:00:23]} O-O {[%emt 0:00:06]} 8. d4 {[%emt 0:06:52]} cxd4 {[%emt 0:03:14]} 9. Qxd4 {[%emt 0:04:26]} Nc6 {[%emt 0:01:20]} 10. Qf4 {[%emt 0:01:03]} d5 {[%emt 0:00:23]} 11. Rd1 {[%emt 0:01:43]} Qb8 {[%emt 0:03:23]} 12. Nbd2 {[%emt 0:41:05]} Qxf4 {[%emt 0:06:36]} 13. gxf4 {[%emt 0:00:02]} Rfd8 {[%emt 0:00:36]} 14. Rac1 {[%emt 0:07:58]} Rac8 {[%emt 0:01:24]} 15. Ne5 {[%emt 0:00:54]} dxc4 {[%emt 0:05:56]} 16. Ndxc4 {[%emt 0:02:02]} Nd5 {[%emt 0:05:09]} 17. e3 {[%emt 0:02:05]} b5 {[%emt 0:03:44]} 18. Nxc6 {[%emt 0:00:25]} Bxc6 {[%emt 0:00:19]} 19. Ne5 {[%emt 0:00:21]} Be8 {[%emt 0:02:43]} 20. Bf3 {[%emt 0:10:47]} g6 {[%emt 0:13:37]} 21. Ng4 {[%emt 0:03:03]} h5 {[%emt 0:03:30]} 22. Ne5 {[%emt 0:03:01]} Kf8 {[%emt 0:02:57]} 23. Be4 {[%emt 0:01:34]} a5 {[%emt 0:03:51]} 24. a3 {[%emt 0:03:27]} Nf6 {[%emt 0:01:57]} 25. Bd3 {[%emt 0:02:10]} Ng4 {[%emt 0:02:17]} 26. Rxc8 {[%emt 0:00:18]} Rxc8 {[%emt 0:00:03]} 27. Nf3 {[%emt 0:00:20]} b4 {[%emt 0:03:39]} 28. axb4 {[%emt 0:00:13]} Bxb4 {[%emt 0:00:55]} 29. h3 {[%emt 0:00:04]} Nh6 {[%emt 0:00:13]} 30. Ng5 {[%emt 0:01:13]} Ke7 {[%emt 0:01:09]} 31. Ne4 {[%emt 0:00:52]} Ng8 {[%emt 0:00:21]} 32. Kf1 {[%emt 0:00:30]} Bc6 {[%emt 0:03:22]} 33. Rc1 {[%emt 0:00:06]} Bb7 {[%emt 0:00:28]} 34. Ke2 {[%emt 0:01:19]} Rxc1 {[%emt 0:02:08]} 35. Bxc1 {[%emt 0:00:01]} Bd5 {[%emt 0:01:14]} 36. Bc2 {[%emt 0:00:01]} Nf6 {[%emt 0:00:32]} 37. Nxf6 {[%emt 0:00:07]} Kxf6 {[%emt 0:00:05]} 38. Bb2+ {[%emt 0:00:30]} Ke7 {[%emt 0:00:08]} 39. e4 {[%emt 0:00:05]} Bc6 {[%emt 0:00:18]} 40. Bd3 {[%emt 0:01:28]} a4 {[%emt 0:08:15]} 1/2-1/2

[Event "44th Chess Olympiad Open 2022"]
[Site "Chennai"]
[Date "2022.08.09"]
[Round "11.16"]
[White "Bjerre, Jonas Buhl"]
[Black "Kadric, Denis"]
[Result "1/2-1/2"]
[ECO "E61"]
[WhiteElo "2608"]
[BlackElo "2554"]
[Annotator "TA"]
[PlyCount "87"]
[EventDate "2022.07.29"]
[EventType "team-tourn"]
[EventCountry "IND"]
[SourceTitle "playchess.com"]
[Source "ChessBase"]
[SourceQuality "1"]
[WhiteTeam "Denmark"]
[BlackTeam "Montenegro"]
[WhiteTeamCountry "DEN"]
[BlackTeamCountry "MNE"]
[TimeControl "40/5400+30:1800+30"]

{[%evp 9,87,37,38,32,34,36,62,38,19,22,41,26,23,25,29,27,60,56,50,79,59,56,79,65,68,50,63,17,125,112,191,202,255,325,302,287,298,292,423,422,424,368,450,420,443,418,386,354,477,441,433,311,321,316,328,323,422,213,205,0,0,0,0,0,0,0,-11,-271,-111,-108,-89,-89,0,0,0,-91,0,0,0,0]} 1. d4 {[%emt 0:00:11]} Nf6 {[%emt 0:00:04]} 2. c4 {[%emt 0:00:10]} d6 {[%emt 0:00:03]} 3. Nf3 {[%emt 0:00:11]} g6 {[%emt 0:00:04]} 4. Nc3 {[%emt 0:00:16]} Bf5 {[%emt 0:00:04]} 5. Qb3 {[%emt 0:08:46]} b6 {[%emt 0:00:14]} 6. h3 {[%emt 0:01:00] E61: King's Indian: Early deviations for White, including Smyslov System.} Nc6 {[%emt 0:00:08]} 7. g4 {[%emt 0:05:25][%cal Bg2g4,Bg4g5][%mdl 32]} Bd7 {[%emt 0:00:04]} 8. Bg2 {[%emt 0:09:11] White is slightly better.} Bg7 {[%emt 0:00:35]} 9. Qc2 {[%emt 0:06:10] [#]} h5 $146 {[%emt 0:04:56]} ({Predecessor:} 9... a6 10. Bg5 h5 11. gxh5 Nxh5 12. Qd2 Qb8 13. b3 b5 14. Rc1 bxc4 15. bxc4 Ra7 {0-1 (53) Vass,F (2324)-Czebe,A (2401) Slovakia 2018}) 10. g5 $1 {[%emt 0:01:37]} Nh7 {[%emt 0:00:04]} 11. Be3 {[%emt 0:02:27]} O-O {[%emt 0:03:47]} 12. Rd1 {[%emt 0:04:38]} Re8 {[%emt 0:06:16]} 13. d5 $36 {[%emt 0:05:47][%mdl 2048] White has some pressure.} Nb4 {[%emt 0:06:10][%cal Bc6b4,Bb4a6,Ba6c7][%mdl 32]} 14. Qd2 {[%emt 0:01:47]} c5 {[%emt 0:00:04]} 15. Nh4 {[%emt 0:04:56]} Qc8 {[%emt 0:08:11]} 16. a3 {[%emt 0:10:23]} Na6 {[%emt 0:00:03]} 17. f4 {[%emt 0:00:33]} Nc7 {[%emt 0:07:59]} 18. Qc2 {[%emt 0:01:02]} (18. Be4 $14 {deserves consideration.}) 18... Qa6 {[%emt 0:18:46]} (18... Nf8 $1 $11) 19. Ne4 {[%emt 0:09:55][%cal Of4f5] White is more active.} b5 {[%emt 0:17:19]} (19... Qa4 $16 20. b3 Qxa3) 20. f5 $1 $18 {[%emt 0:01:58]} bxc4 {[%emt 0:00:04]} (20... gxf5 21. Ng3 Qa4 22. Qxa4 bxa4 23. Nhxf5 $16) 21. fxg6 {[%emt 0:00:59]} fxg6 {[%emt 0:00:03] aiming for ...Ba4.} 22. Ng3 {[%emt 0:03:11]} Nf8 {[%emt 0:00:01] White must now prevent ...Ba4.} (22... Qa5+ $2 23. Bd2 c3 24. Bxc3 (24. bxc3 Qa4 $14) 24... Bxc3+ 25. bxc3 $18) 23. O-O {[%emt 0:04:18]} (23. Nxg6 Qa4 24. Qe4 c3 $11) 23... Qa4 {[%emt 0:00:36]} (23... Ba4 24. Qe4 Bxd1 25. Nxg6 Bxe2 26. Nxe2) (23... e6 {was worth a try.}) 24. Qe4 {[%emt 0:01:07]} c3 {[%emt 0:04:08]} 25. b4 {[%emt 0:01:55]} (25. bxc3 Qxe4 26. Nxe4 Ba4 $17) 25... e6 {[%emt 0:07:46] Hoping for ...c2.} 26. Nxg6 {[%emt 0:03:06]} exd5 {[%emt 0:00:02] [#]} 27. Qf3 {[%emt 0:02:09]} Be6 {[%emt 0:04:21][%cal Bd7e6,Be6f7,Bf7g6][%mdl 32] Inhibits Qf7+.} 28. Qxh5 {[%emt 0:01:13][%cal Of1f8] Rxf8+! would kill now. Really sharp!} Qxd1 {[%emt 0:00:20]} 29. Rxd1 {[%emt 0:01:31]} Bf7 {[%emt 0:00:02]} 30. Qf3 {[%emt 0:01:42]} Bxg6 {[%emt 0:04:25]} 31. Bc1 {[%emt 0:01:14]} (31. bxc5 dxc5 32. Nf5 (32. Bxc5 c2 $11) 32... Bxf5 33. Qxf5 Re5 $16) 31... Nfe6 {[%emt 0:01:52]} 32. Qg4 {[%emt 0:01:51]} Nd4 {[%emt 0:02:15]} 33. Qd7 {[%emt 0:01:22] Prevents Re7.} (33. h4 $142) 33... Nde6 {[%emt 0:05:15]} 34. Qxd6 {[%emt 0:02:00]} (34. Rf1 $18) 34... Rad8 $11 {[%emt 0:00:02]} 35. Qc6 {[%emt 0:00:12][%cal Rg2d5]} Be5 {[%emt 0:00:16]} 36. Nf1 {[%emt 0:01:01]} Rd6 {[%emt 0:00:35]} 37. Qb7 {[%emt 0:02:47]} c2 {[%emt 0:01:22]} 38. Re1 {[%emt 0:00:10][%mdl 8192] [#]} (38. Rd2 $1 $11 {and White has nothing to worry.}) 38... Rb6 {[%emt 0:00:39]} (38... Bc3 $1 $19 {[%cal Rc3e1] and Black stays clearly on top.} 39. Bd2 (39. bxc5 Rd7 $17) 39... cxb4 40. Bxc3 (40. axb4 $2 Bxd2 41. Nxd2 Ra8 $19) 40... bxc3 41. Qxa7 Ra6) 39. Qxa7 $17 {[%emt 0:00:07]} Ra6 {[%emt 0:00:02]} 40. Qb7 {[%emt 0:00:20]} Nd8 {[%emt 0:00:52][%mdl 1024] Black has strong compensation.} 41. Qc8 {[%emt 0:09:19]} Nde6 {[%emt 0:01:27]} 42. Qb7 {[%emt 0:02:06] [#]} Nd8 {[%emt 0:02:18]} (42... Raa8 $1 $17 {And now ...Reb8 would win.} 43. Qc6 (43. Bxd5 $2 Nxd5 44. Qxd5 Bc3 $19) 43... Ra6 44. Qb7) 43. Qc8 {[%emt 0:10:49] Threatens to win with Qg4.} Nde6 {[%emt 0:00:12]} 44. Qb7 $1 {[%emt 0:01:20] Quite a comeback for White.  Weighted Error Value: White=0.30/Black=0.33} 1/2-1/2

[Event "44th Chess Olympiad Open 2022"]
[Site "Chennai"]
[Date "2022.08.09"]
[Round "11.16"]
[White "Rasmussen, Allan Stig"]
[Black "Draskovic, Luka"]
[Result "0-1"]
[ECO "E94"]
[WhiteElo "2550"]
[BlackElo "2503"]
[Annotator "RC"]
[PlyCount "90"]
[EventDate "2022.07.29"]
[EventType "team-tourn"]
[EventCountry "IND"]
[SourceTitle "playchess.com"]
[Source "ChessBase"]
[SourceQuality "1"]
[WhiteTeam "Denmark"]
[BlackTeam "Montenegro"]
[WhiteTeamCountry "DEN"]
[BlackTeamCountry "MNE"]
[TimeControl "40/5400+30:1800+30"]

1. Nf3 {[%emt 0:00:08]} Nf6 {[%emt 0:00:32]} 2. c4 {[%emt 0:00:08]} g6 {[%emt 0:01:43]} 3. Nc3 {[%emt 0:00:35]} Bg7 {[%emt 0:01:34]} 4. d4 {[%emt 0:00:21]} d6 {[%emt 0:00:37]} 5. e4 {[%emt 0:00:34]} O-O {[%emt 0:03:20]} 6. Be2 {[%emt 0:00:14]} Na6 {[%emt 0:01:02]} 7. O-O {[%emt 0:00:26]} e5 {[%emt 0:00:06]} 8. Re1 {[%emt 0:02:08]} Qe8 {[%emt 0:19:48]} 9. dxe5 {[%emt 0:04:24]} dxe5 {[%emt 0:00:08]} 10. Be3 {[%emt 0:01:39]} Ng4 {[%emt 0:04:44]} 11. Bd2 {[%emt 0:05:25]} c6 {[%emt 0:01:38]} 12. h3 {[%emt 0:01:58]} Nf6 {[%emt 0:00:06]} 13. Be3 {[%emt 0:01:24]} Qe7 {[%emt 0:00:25]} 14. Nd2 {[%emt 0:03:35]} Rd8 {[%emt 0:04:18]} 15. Qb1 {[%emt 0:08:39]} Nc5 {[%emt 0:14:29]} 16. b4 {[%emt 0:01:01]} Ne6 {[%emt 0:00:05]} 17. c5 {[%emt 0:00:47]} Nd4 {[%emt 0:00:41]} 18. Nc4 {[%emt 0:04:24]} Ne8 {[%emt 0:02:27]} 19. Bf1 {[%emt 0:04:39]} Be6 {[%emt 0:13:07]} 20. a4 {[%emt 0:10:31]} Bxc4 {[%emt 0:00:00]} 21. Bxc4 {[%emt 0:00:08]} a5 {[%emt 0:00:00]} 22. Rc1 {[%emt 0:02:46]} Nc7 {[%emt 0:08:57]} 23. Ne2 {[%emt 0:09:38]} axb4 {[%emt 0:02:14]} 24. Nxd4 {[%emt 0:03:34]} exd4 {[%emt 0:00:30]} 25. Bf4 {[%emt 0:00:23]} Ne6 {[%emt 0:08:13]} 26. Bxe6 {[%emt 0:08:47]} Qxe6 {[%emt 0:00:16]} 27. Qxb4 {[%emt 0:06:24]} Qxe4 {[%emt 0:00:42]} 28. Bc7 {[%emt 0:00:36]} Re8 {[%emt 0:02:12]} 29. Re1 {[%emt 0:03:11]} Qc2 {[%emt 0:02:41]} 30. Rec1 {[%emt 0:07:26]} Qe4 {[%emt 0:00:14]} 31. Re1 {[%emt 0:00:30]} Qd5 {[%emt 0:00:19]} 32. Bd6 {[%emt 0:01:18]} d3 {[%emt 0:02:21]} 33. Rad1 {[%emt 0:03:34]} h5 {[%emt 0:02:54]} 34. a5 {[%emt 0:01:48]} Bh6 {[%emt 0:00:47]} 35. Rf1 {[%emt 0:04:16]} Re4 {[%emt 0:02:17]} 36. Qc3 {[%emt 0:00:29]} Rd4 {[%emt 0:00:50]} 37. f4 {[%emt 0:00:14]} Bg7 {[%emt 0:00:49]} 38. Qd2 {[%emt 0:00:46]} Re8 {[%emt 0:00:41]} 39. Rde1 {[%emt 0:00:15]} Rde4 {[%emt 0:01:21]} 40. Rxe4 {[%emt 0:00:30]} Rxe4 {[%emt 0:00:20]} 41. Rf3 {[%emt 0:01:54]} Rd4 {[%emt 0:06:43]} 42. f5 {[%emt 0:06:59]} Kh7 {[%emt 0:01:59]} 43. fxg6+ {[%emt 0:00:38]} fxg6 {[%emt 0:00:05]} 44. Re3 {[%emt 0:03:20]} Qg5 {[%emt 0:00:51]} 45. Kf2 {[%emt 0:06:49]} Bh6 {[%emt 0:00:36]} 0-1

[Event "44th Chess Olympiad Open 2022"]
[Site "Chennai"]
[Date "2022.08.09"]
[Round "11.16"]
[White "Djukic, Nikola"]
[Black "Andersen, Mads"]
[Result "1/2-1/2"]
[ECO "C90"]
[WhiteElo "2526"]
[BlackElo "2587"]
[Annotator "RC"]
[PlyCount "89"]
[EventDate "2022.07.29"]
[EventType "team-tourn"]
[EventCountry "IND"]
[SourceTitle "playchess.com"]
[Source "ChessBase"]
[SourceQuality "1"]
[WhiteTeam "Montenegro"]
[BlackTeam "Denmark"]
[WhiteTeamCountry "MNE"]
[BlackTeamCountry "DEN"]
[TimeControl "40/5400+30:1800+30"]

1. e4 {[%emt 0:00:03]} e5 {[%emt 0:00:15]} 2. Nf3 {[%emt 0:00:07]} Nc6 {[%emt 0:00:06]} 3. Bb5 {[%emt 0:00:06]} a6 {[%emt 0:00:10]} 4. Ba4 {[%emt 0:00:06]} Nf6 {[%emt 0:00:10]} 5. O-O {[%emt 0:00:09]} Be7 {[%emt 0:00:10]} 6. d3 {[%emt 0:00:09]} b5 {[%emt 0:00:08]} 7. Bb3 {[%emt 0:00:08]} d6 {[%emt 0:00:09]} 8. c3 {[%emt 0:00:21]} O-O {[%emt 0:01:21]} 9. a4 {[%emt 0:00:16]} Bd7 {[%emt 0:01:19]} 10. Bc2 {[%emt 0:00:35]} Re8 {[%emt 0:01:46]} 11. Re1 {[%emt 0:00:46]} h6 {[%emt 0:03:53]} 12. Nbd2 {[%emt 0:00:42]} Bf8 {[%emt 0:01:08]} 13. Nf1 {[%emt 0:02:46]} d5 {[%emt 0:02:03]} 14. exd5 {[%emt 0:05:46]} Nxd5 {[%emt 0:00:05]} 15. axb5 {[%emt 0:01:32]} axb5 {[%emt 0:00:21]} 16. Rxa8 {[%emt 0:00:11]} Qxa8 {[%emt 0:00:06]} 17. Ng3 {[%emt 0:01:09]} b4 {[%emt 0:26:12]} 18. Bd2 {[%emt 0:01:31]} bxc3 {[%emt 0:00:41]} 19. bxc3 {[%emt 0:00:07]} Nf6 {[%emt 0:08:44]} 20. Bb3 {[%emt 0:10:00]} Qa3 {[%emt 0:05:41]} 21. Bc1 {[%emt 0:15:35]} Qa5 {[%emt 0:01:38]} 22. Ne4 {[%emt 0:06:32]} Nxe4 {[%emt 0:03:21]} 23. dxe4 {[%emt 0:00:08]} Be6 {[%emt 0:07:17]} 24. Bd2 {[%emt 0:16:25]} Bxb3 {[%emt 0:02:45]} 25. Qxb3 {[%emt 0:00:06]} Rd8 {[%emt 0:00:47]} 26. Qc4 {[%emt 0:09:15]} Qc5 {[%emt 0:00:32]} 27. Qxc5 {[%emt 0:06:20]} Bxc5 {[%emt 0:00:03]} 28. Kf1 {[%emt 0:01:33]} Na5 {[%emt 0:05:43]} 29. Ke2 {[%emt 0:04:32]} Nc4 {[%emt 0:00:18]} 30. Bc1 {[%emt 0:04:13]} f6 {[%emt 0:12:22]} 31. Rf1 {[%emt 0:01:46]} Nb6 {[%emt 0:01:57]} 32. Be3 {[%emt 0:02:29]} Na4 {[%emt 0:03:40]} 33. Rc1 {[%emt 0:05:37]} Bxe3 {[%emt 0:02:21]} 34. Kxe3 {[%emt 0:00:05]} Nc5 {[%emt 0:00:11]} 35. Ne1 {[%emt 0:02:34]} Kf7 {[%emt 0:01:41]} 36. f3 {[%emt 0:01:10]} Ke7 {[%emt 0:01:28]} 37. Ke2 {[%emt 0:02:20]} h5 {[%emt 0:02:18]} 38. Rc2 {[%emt 0:00:27]} h4 {[%emt 0:00:56]} 39. Rb2 {[%emt 0:01:19]} Rd6 {[%emt 0:01:44]} 40. g3 {[%emt 0:00:45]} hxg3 {[%emt 0:01:48]} 41. hxg3 {[%emt 0:30:06]} Ke6 {[%emt 0:12:22]} 42. Rb4 {[%emt 0:00:00]} Ra6 {[%emt 0:03:40]} 43. Nd3 {[%emt 0:00:00]} Ra2+ {[%emt 0:00:47]} 44. Ke3 {[%emt 0:00:00]} Nxd3 {[%emt 0:04:30]} 45. Kxd3 {[%emt 0:00:00]} 1/2-1/2